bitfinex/quotes_ETHUSD_20251120
["timestamp","ask_amount","ask_price","bid_price","bid_amount"]
[1763648445880,0.122,3004.7,3003.2,0.4912]
[1763648446107,0.5813,3004.7,3003.3,0.189]
[1763648446280,0.5813,3004.7,3003.2,0.4912]
[1763648446477,0.5813,3004.7,3003.1,0.4912]
[1763648446478,3.78753004,3004.6,3003.1,0.4912]
[1763648446786,3.78753004,3004.6,3002.6,4.23742255]
[1763648446991,7.11576008,3004.6,3003.0,0.4912]
[1763648447188,0.122,3004.5,3003.0,0.4912]
[1763648447844,0.1803,3005.0,3003.1,0.94029156]
[1763648448047,0.1803,3005.0,3003.1,0.90699264]
[1763648448048,0.122,3004.4,3003.1,0.90699264]
[1763648448245,0.1212,3004.4,3003.5,6.99194995]
[1763648448635,0.1212,3004.4,3002.3,0.4912]
[1763648448801,0.1212,3004.4,3003.0,6.99194995]
[1763648449233,0.6396,3005.0,3003.1,1.51099264]
[1763648449405,0.122,3004.9,3003.1,1.51099264]
[1763648449745,0.6441379,3004.9,3003.2,0.4912]
[1763648450302,1.1034379,3004.9,3003.2,0.4912]
[1763648450511,6.65601702,3004.8,3003.2,0.4912]
[1763648450726,7.11531702,3004.8,3003.2,3.82096417]
[1763648451110,0.4593,3004.7,3003.2,0.4912]
[1763648451433,3.32800851,3004.8,3003.3,0.4912]
[1763648451657,0.122,3004.7,3003.3,0.4912]
[1763648451825,0.4593,3005.3,3004.0,6.99194995]
[1763648452029,0.1803,3005.4,3004.0,6.99194995]
[1763648452030,0.122,3005.2,3004.0,6.99194995]
[1763648452265,0.03327248,3005.1,3003.4,0.4912]
[1763648452447,0.64404704,3005.2,3003.4,1.39819264]
[1763648452764,0.405504,3005.0,3003.1,0.1128]
[1763648453157,0.405504,3004.8,3003.1,0.1128]
[1763648453668,0.4593,3004.7,3003.1,0.1128]
[1763648454068,0.03327248,3004.6,3002.9,0.4912]
[1763648454269,0.405504,3004.5,3003.3,0.001]
[1763648454569,6.6569032,3004.4,3003.3,0.001]
[1763648454868,3.3284516,3004.4,3003.3,0.001]
[1763648455168,0.122,3004.3,3003.3,0.001]
[1763648455960,0.03327248,3004.2,3003.3,0.001]
[1763648456444,0.4593,3004.1,3003.3,0.001]
[1763648456769,6.69106208,3004.0,3003.3,0.001]
[1763648457070,0.03327248,3003.9,3003.3,0.001]
[1763648457272,0.4593,3003.8,3003.3,0.001]
[1763648457569,0.03327248,3003.7,3003.3,0.001]
[1763648457738,0.4593,3003.8,3003.3,0.001]
[1763648457935,0.49257248,3003.8,3003.3,0.001]
[1763648458339,0.4593,3003.8,3003.3,0.001]
[1763648458768,7.1175601,3003.8,3003.3,0.001]
[1763648458973,10.44669015,3003.8,3003.3,0.001]
[1763648459184,0.4593,3003.7,3003.3,0.001]
[1763648459685,3.3288948,3004.0,3003.3,0.001]
[1763648459860,6.6577896,3004.0,3003.3,0.001]
[1763648460062,0.03327248,3003.9,3003.3,0.001]
[1763648460262,0.49257248,3003.9,3003.3,0.001]
[1763648460586,0.03327248,3003.8,3003.3,0.001]
[1763648460888,0.3023,3004.3,3003.3,0.001]
[1763648460889,0.4593,3004.7,3003.3,0.001]
[1763648461098,24.886,3007.6,3003.3,0.001]
[1763648461099,0.03327248,3006.0,3004.6,0.189]
[1763648461392,0.1803,3006.6,3005.0,6.99194995]
[1763648461595,0.52200334,3006.4,3005.0,7.48314995]
[1763648461891,0.52200334,3006.4,3005.0,0.4912]
[1763648461892,0.03327248,3006.3,3005.0,0.4912]
[1763648462067,0.03327248,3006.2,3005.0,0.4912]
[1763648462272,0.03327248,3006.2,3004.7,0.90699264]
[1763648462624,0.4593,3006.2,3004.6,7.67214995]
[1763648462755,0.4593,3006.2,3003.3,0.87953552]
[1763648462756,9.123424,3005.9,3003.8,0.4912]
[1763648462952,0.52200334,3006.4,3004.3,6.99194995]
[1763648463168,0.5813,3006.3,3005.0,0.90699264]
[1763648463369,0.122,3006.3,3005.4,6.99194995]
[1763648463577,0.122,3006.3,3005.1,0.6802]
[1763648464408,0.405504,3006.1,3004.7,0.189]
[1763648464610,0.405504,3006.1,3004.3,7.18094995]
[1763648464760,0.405504,3006.1,3004.0,0.4912]
[1763648464761,10.47261239,3006.0,3004.0,0.4912]
[1763648465086,13.76601988,3006.0,3004.0,1.39819264]
[1763648465315,0.405504,3005.8,3004.0,0.4912]
[1763648465467,0.405504,3005.8,3004.1,0.90699264]
[1763648465672,0.4593,3005.9,3004.1,0.90699264]
[1763648465673,0.4593,3005.7,3004.1,0.90699264]
[1763648465872,0.4593,3005.7,3004.1,1.39819264]
[1763648466196,0.4593,3005.7,3004.3,6.99194995]
[1763648466621,0.4593,3005.7,3004.4,0.189]
[1763648466832,0.4593,3006.2,3004.8,6.99194995]
[1763648467003,0.122,3006.1,3004.8,6.99194995]
[1763648467920,0.03327248,3006.0,3004.4,0.189]
[1763648468232,0.405504,3006.0,3004.0,3.82007118]
[1763648468535,0.405504,3005.8,3004.1,0.90699264]
[1763648468731,0.405504,3005.6,3004.0,0.4912]
[1763648469109,0.68667248,3005.5,3004.0,0.4912]
[1763648469308,0.68667248,3005.5,3003.9,0.90699264]
[1763648469516,0.405504,3005.3,3003.8,6.99194995]
[1763648469712,0.405504,3005.1,3003.3,0.001]
[1763648470103,0.405504,3004.9,3003.3,0.001]
[1763648470424,0.1842,3003.4,3003.3,0.001]
[1763648470598,0.710704,3003.4,3003.3,0.001]
[1763648470803,4.50946383,3003.4,3003.3,0.001]
[1763648471029,0.405504,3003.3,3002.9,0.001]
[1763648471215,0.874704,3003.3,3002.9,0.001]
[1763648471429,0.87143672,3004.2,3002.9,0.001]
[1763648471430,1.46163672,3004.5,3003.2,7.09634995]
[1763648471755,0.4692,3004.4,3003.2,6.99194995]
[1763648471925,0.4692,3004.4,3003.1,0.1044]
[1763648472236,0.122,3004.6,3003.7,6.99194995]
[1763648472420,0.1834,3005.5,3003.7,6.99194995]
[1763648472421,3.51072167,3005.5,3003.7,6.99194995]
[1763648472623,0.121,3005.4,3003.7,7.48434995]
[1763648472837,0.4692,3005.4,3004.2,6.99194995]
[1763648473024,0.121,3005.5,3004.2,6.99194995]
[1763648473205,3.32615845,3006.5,3004.7,6.99194995]
[1763648473522,0.4692,3007.2,3005.7,6.99194995]
[1763648473709,0.121,3007.1,3005.7,6.99194995]
[1763648473911,0.03327248,3007.0,3005.5,0.4924]
[1763648474136,17.919897,3006.9,3004.9,1.37093552]
[1763648474338,0.50247248,3007.0,3004.1,2.3900135]
[1763648474339,0.405504,3006.7,3004.4,1.39939264]
[1763648474510,0.4692,3006.9,3004.9,0.90699264]
[1763648474717,0.002,3006.1,3004.9,0.90699264]
[1763648474922,0.121,3006.0,3004.4,1.37093552]
[1763648475122,0.5902,3006.0,3004.4,4.72775865]
[1763648475449,0.5902,3006.0,3004.4,7.14926724]
[1763648475611,0.405504,3005.8,3003.9,0.87853552]
[1763648475812,0.15427248,3005.7,3004.0,0.4924]
[1763648476028,0.5902,3005.7,3004.0,1.39939264]
[1763648476225,0.5902,3005.7,3004.1,0.03328783]
[1763648476412,0.5902,3005.7,3004.4,6.99194995]
[1763648476625,0.121,3005.7,3004.4,6.99194995]
[1763648476824,0.121,3005.7,3004.5,3.32834082]
[1763648477025,3.44802816,3005.7,3004.5,3.32834082]
[1763648477248,0.121,3005.7,3004.5,3.32834082]
[1763648477449,0.50247248,3005.6,3003.8,0.87853552]
[1763648477620,0.405504,3005.5,3003.6,3.32925011]
[1763648477817,0.03327248,3005.4,3003.5,0.4924]
[1763648478056,0.405504,3005.3,3003.3,0.001]
[1763648478362,0.50247248,3005.2,3003.3,0.001]
[1763648478860,0.405504,3004.8,3003.3,0.001]
[1763648479061,0.15427248,3004.7,3003.3,0.001]
[1763648479363,0.405504,3004.6,3003.3,0.001]
[1763648479717,0.5902,3004.7,3003.3,0.001]
[1763648479718,0.405504,3004.4,3003.3,0.001]
[1763648480120,0.405504,3004.2,3003.3,0.001]
[1763648480655,0.4692,3004.1,3003.3,0.001]
[1763648481256,10.45561221,3004.1,3003.3,0.001]
[1763648481414,7.1267981,3004.1,3003.3,0.001]
[1763648481844,0.4692,3004.0,3003.3,0.001]
[1763648482250,3.32868335,3004.2,3003.3,0.001]
[1763648482557,0.405504,3004.1,3003.3,0.001]
[1763648482849,6.6582329,3003.8,3003.3,0.001]
[1763648483252,3.32907048,3003.9,3003.3,0.001]
[1763648483454,0.121,3003.8,3003.3,0.001]
[1763648484172,0.4692,3005.4,3003.4,0.4924]
[1763648484330,0.121,3005.6,3004.0,0.90699264]
[1763648484870,0.121,3005.6,3004.2,6.65734638]
[1763648485215,0.121,3005.6,3004.3,0.4924]
[1763648485929,3.36050588,3005.5,3004.3,0.4924]
[1763648486112,3.7964334,3005.5,3003.7,3.32921589]
[1763648486317,0.50247248,3005.4,3003.6,4.23631595]
[1763648486513,0.50247248,3005.4,3003.3,3.33058331]
[1763648486514,0.405504,3005.2,3003.3,3.33058331]
[1763648486725,0.405504,3005.2,3003.4,0.03329559]
[1763648487047,0.4692,3005.2,3003.5,5.85763529]
[1763648487347,0.03327248,3005.1,3003.5,5.85763529]
[1763648487668,0.03327248,3005.1,3003.6,0.4924]
[1763648487853,0.121,3005.0,3004.0,5.85763529]
[1763648488022,0.121,3004.9,3003.5,6.76462793]
[1763648488354,0.121,3004.9,3003.5,6.35003529]
[1763648488554,0.121,3004.9,3003.7,5.85763529]
[1763648488867,0.121,3004.9,3003.8,3.32911645]
[1763648489023,3.32800851,3004.8,3003.7,5.85763529]
[1763648489243,0.121,3004.9,3003.7,5.85763529]
[1763648489244,0.121,3004.9,3003.8,0.4831]
[1763648489446,0.121,3004.9,3003.9,0.03329005]
[1763648489647,0.121,3005.1,3004.2,5.85763529]
[1763648489968,0.121,3005.1,3004.0,0.4831]
[1763648490367,0.121,3005.1,3003.8,6.73617081]
[1763648490368,0.03327248,3005.0,3003.8,5.85763529]
[1763648490564,0.03327248,3005.0,3003.5,1.19500675]
[1763648490565,0.03327248,3004.9,3003.5,1.36163552]
[1763648490879,0.03327248,3004.9,3003.3,7.05364204]
[1763648490880,6.65579552,3004.9,3003.3,5.85863529]
[1763648491050,0.4608,3004.8,3003.3,0.001]
[1763648491441,0.03327248,3004.7,3003.3,0.001]
[1763648491669,0.4608,3004.8,3003.3,0.001]
[1763648491988,0.4608,3004.7,3003.3,0.001]
[1763648492340,0.405504,3005.0,3003.5,5.85763529]
[1763648492341,3.32788823,3005.0,3003.5,5.85763529]
[1763648492571,0.5818,3004.9,3003.3,0.4841]
[1763648492893,0.405504,3004.5,3003.3,0.001]
[1763648493093,0.03327248,3004.4,3003.3,0.001]
[1763648493272,0.49407248,3004.4,3003.3,0.001]
[1763648493441,0.405504,3004.3,3003.3,0.001]
[1763648493878,0.69057248,3004.2,3003.3,0.001]
[1763648494297,5.891686,3004.0,3003.3,0.001]
[1763648494446,0.405504,3003.8,3003.3,0.001]
[1763648494984,3.32944897,3003.5,3003.3,0.001]
[1763648495580,0.121,3003.4,3003.3,0.001]
[1763648496480,0.1202,3003.4,3003.3,0.001]
[1763648497190,3.91055983,3003.4,3003.3,0.001]
[1763648497990,3.44975983,3003.4,3003.3,0.001]
[1763648498192,0.52230816,3003.9,3003.3,0.001]
[1763648498391,3.32804868,3004.8,3003.3,0.001]
[1763648498392,0.121,3003.8,3003.3,0.4988]
[1763648498563,0.121,3003.8,3003.3,0.001]
[1763648498902,0.4936,3003.7,3003.3,0.001]
[1763648499064,6.65867624,3003.6,3003.3,0.001]
[1763648499465,0.4936,3003.5,3003.3,0.001]
[1763648499766,0.52220516,3004.5,3003.4,0.4978]
[1763648499963,7.14850964,3005.3,3003.6,5.85763529]
[1763648500178,0.52216813,3004.9,3003.6,5.85763529]
[1763648500407,0.002,3005.5,3003.7,1.54838491]
[1763648500408,0.121,3004.8,3003.7,1.54838491]
[1763648500614,0.121,3004.8,3003.7,2.40758076]
[1763648500824,0.121,3004.8,3003.8,0.4978]
[1763648501104,0.121,3004.8,3003.8,3.82690947]
[1763648501310,3.44901675,3004.8,3003.8,0.4978]
[1763648501606,0.1998,3004.7,3003.3,0.89348812]
[1763648501899,0.03327248,3004.6,3003.3,0.89348812]
[1763648502099,0.6934,3004.7,3003.3,0.001]
[1763648502272,0.1998,3004.7,3003.3,0.001]
[1763648502471,0.4936,3004.6,3003.3,0.001]
[1763648502906,3.44901675,3004.8,3003.6,5.85763529]
[1763648503080,3.32823004,3004.6,3003.4,3.82732833]
[1763648503282,3.32823004,3004.6,3003.5,0.4978]
[1763648503472,0.121,3004.8,3003.6,5.89092867]
[1763648503671,0.121,3004.8,3003.6,5.85763529]
[1763648503974,0.121,3004.8,3003.5,0.4978]
[1763648503975,0.6934,3004.7,3003.3,0.001]
[1763648504543,0.4936,3004.6,3003.3,0.001]
[1763648504925,9.98502246,3004.5,3003.3,0.001]
[1763648505123,0.405504,3004.4,3003.3,0.001]
[1763648505323,0.899104,3004.4,3003.3,0.001]
[1763648505527,0.405504,3004.2,3003.3,0.001]
[1763648505740,0.03327248,3004.1,3003.3,0.001]
[1763648505942,0.525504,3004.0,3003.3,0.001]
[1763648506115,0.405504,3003.8,3003.3,0.001]
[1763648506516,0.4936,3003.7,3003.3,0.001]
[1763648507250,0.405504,3003.5,3003.3,0.001]
[1763648507610,3.82194082,3004.5,3003.4,0.4978]
[1763648507954,0.15327248,3004.4,3003.3,0.001]
[1763648508138,0.6136,3004.4,3003.3,0.001]
[1763648508346,0.405504,3004.3,3003.3,0.001]
[1763648509013,0.405504,3004.1,3003.3,0.001]
[1763648509410,0.405504,3003.9,3003.3,0.001]
[1763648509634,0.03327248,3003.8,3003.3,0.001]
[1763648509953,0.505504,3003.7,3003.3,0.001]
[1763648510109,0.405504,3003.5,3003.3,0.001]
[1763648510745,0.12,3003.6,3003.3,0.001]
[1763648510922,0.52228906,3003.5,3003.3,0.001]
[1763648511122,0.12,3003.4,3003.3,0.001]
[1763648512473,0.03327248,3003.4,3003.3,0.001]
[1763648512674,0.12,3003.4,3003.3,0.001]
[1763648513035,3.44955983,3003.4,3003.3,0.001]
[1763648514040,3.48283231,3003.4,3003.3,0.001]
[1763648514645,3.44955983,3003.4,3003.3,0.001]
[1763648515079,3.8511625,3004.0,3003.3,0.4988]
[1763648515248,0.15327248,3003.9,3003.3,0.4988]
[1763648515448,0.15327248,3003.9,3003.3,0.001]
[1763648515845,0.15327248,3003.9,3002.8,0.3998]
[1763648516176,0.15327248,3003.9,3002.6,0.001]
[1763648516177,0.899104,3003.8,3002.6,0.001]
[1763648516340,0.4936,3003.8,3002.6,0.001]
[1763648516544,0.899104,3003.7,3002.6,0.001]
[1763648516772,0.12,3003.6,3002.6,0.001]
[1763648516976,3.32944897,3003.5,3002.6,0.001]
[1763648517406,0.52223046,3004.0,3002.6,0.90799264]
[1763648517694,0.12,3004.0,3003.1,0.89248812]
[1763648517898,0.12,3004.0,3002.9,0.89248812]
[1763648518046,0.03327248,3003.9,3002.9,0.89248812]
[1763648518548,0.405504,3003.8,3002.8,1.39028812]
[1763648518756,0.405504,3003.8,3002.6,1.19600675]
[1763648518757,0.03327248,3003.7,3002.7,0.89248812]
[1763648518954,0.03327248,3003.7,3002.6,0.001]
[1763648519155,6.65867624,3003.6,3002.6,0.001]
[1763648519364,0.03327248,3003.5,3002.6,0.001]
[1763648520085,0.405504,3003.4,3002.6,0.001]
[1763648520271,0.898304,3003.4,3002.6,0.001]
[1763648520473,0.12,3003.3,3002.6,0.001]
[1763648520812,0.15327248,3003.2,3002.6,0.001]
[1763648521015,0.12,3003.2,3002.7,0.4978]
[1763648521296,0.88704181,3004.2,3002.9,0.89248812]
[1763648521297,0.12,3004.2,3002.9,0.89248812]
[1763648521499,0.03327248,3004.1,3002.9,0.89248812]
[1763648521813,0.4936,3004.1,3002.8,1.07618812]
[1763648522018,0.03327248,3004.0,3002.7,0.89248812]
[1763648522175,0.405504,3003.9,3002.6,0.001]
[1763648522707,0.4936,3003.8,3002.6,0.001]
[1763648522918,0.405504,3003.7,3002.6,0.4988]
[1763648523201,6.65867624,3003.6,3002.6,0.4988]
[1763648523424,0.94026512,3004.3,3002.6,0.4988]
[1763648523425,0.002,3004.4,3003.6,0.1837]
[1763648523603,0.002,3004.4,3004.3,0.1837]
[1763648524063,0.002,3004.4,3004.3,0.6815]
[1763648524813,0.002,3004.4,3003.9,5.85763529]
[1763648524814,0.002,3004.4,3003.9,0.89248812]
[1763648525105,0.002,3004.4,3004.2,0.1837]
[1763648525408,0.002,3004.4,3004.0,0.4978]
[1763648525985,0.002,3004.4,3003.8,0.89248812]
[1763648526321,0.002,3004.4,3003.7,0.89248812]
[1763648526609,0.002,3004.4,3003.7,1.39028812]
[1763648527175,0.002,3004.4,3003.8,0.4978]
[1763648527484,0.002,3004.4,3004.1,5.85763529]
[1763648527697,0.002,3004.4,3004.2,0.4978]
[1763648528720,0.002,3004.4,3004.0,0.89248812]
[1763648528927,0.002,3004.4,3003.5,0.89248812]
[1763648529111,0.4754,3004.3,3003.3,0.89248812]
[1763648529310,0.4754,3004.3,3003.2,0.4875]
[1763648529311,6.69061886,3004.2,3003.2,1.37998812]
[1763648529474,6.69061886,3004.2,3003.0,0.89248812]
[1763648529475,6.65734638,3004.2,3003.0,0.89248812]
[1763648529821,6.65734638,3004.2,3003.1,0.4875]
[1763648530328,0.002,3004.4,3003.3,5.85763529]
[1763648530609,0.002,3004.4,3003.4,1.83277635]
[1763648530909,0.002,3004.4,3004.3,0.1912]
[1763648531299,0.002,3004.4,3003.6,1.19500675]
[1763648531300,0.002,3004.4,3003.9,0.1912]
[1763648531498,0.002,3004.4,3003.4,1.19500675]
[1763648531814,0.002,3004.4,3003.5,0.4875]
[1763648532313,0.002,3004.4,3003.3,3.33066346]
[1763648532514,0.002,3004.4,3003.3,0.4885]
[1763648533313,0.002,3004.4,3003.3,7.14782672]
[1763648533513,0.002,3004.4,3003.7,5.85763529]
[1763648533718,0.002,3004.4,3004.3,0.1912]
[1763648533892,0.002,3004.4,3004.3,0.6787]
[1763648534215,0.002,3004.4,3003.7,2.10199939]
[1763648534440,0.405504,3004.3,3003.3,0.001]
[1763648534604,0.880904,3004.3,3003.3,0.001]
[1763648534809,0.405504,3004.1,3003.3,0.001]
[1763648535017,0.002,3004.4,3003.3,0.001]
[1763648535334,3.32867319,3004.2,3003.3,0.001]
[1763648535634,7.0626443,3004.3,3003.3,0.001]
[1763648535836,10.39122221,3004.3,3003.3,0.001]
[1763648536134,0.405504,3004.1,3003.3,0.001]
[1763648536538,0.2,3004.0,3003.3,0.001]
[1763648536716,0.12,3003.9,3003.3,0.001]
[1763648537108,0.405504,3003.8,3003.3,0.001]
[1763648537447,0.405504,3003.6,3003.3,0.001]
[1763648537802,0.4754,3003.5,3003.3,0.001]
[1763648537999,0.405504,3003.4,3003.3,0.001]
[1763648538237,0.880904,3003.4,3003.3,0.001]
[1763648538614,0.405504,3003.6,3003.3,0.001]
[1763648538815,0.880904,3003.6,3003.3,0.001]
[1763648539211,3.73506383,3003.4,3003.3,0.001]
[1763648539640,0.4754,3003.5,3003.3,0.001]
[1763648539641,3.73497544,3003.5,3003.3,0.001]
[1763648539830,0.880904,3003.4,3003.3,0.001]
[1763648541644,3.32911645,3003.8,3003.3,0.001]
[1763648541868,0.03327248,3003.7,3003.3,0.001]
[1763648542066,3.44901942,3003.9,3003.3,0.001]
[1763648542067,7.25343884,3003.9,3003.3,0.001]
[1763648542371,1.080904,3003.8,3003.3,0.001]
[1763648542568,1.98789664,3003.8,3003.3,0.001]
[1763648542769,0.405504,3003.6,3003.3,0.001]
[1763648543270,3.73506383,3003.4,3003.3,0.001]
[1763648543645,4.21046383,3003.4,3003.3,0.001]
[1763648544048,0.12,3003.4,3003.3,0.001]
[1763648544271,0.64149043,3003.4,3003.3,0.001]
[1763648545333,4.85195426,3003.4,3003.3,0.001]
[1763648546474,5.2835469,3003.4,3003.3,0.001]
[1763648546674,1.54848307,3003.4,3003.3,0.001]
[1763648546858,1.02619264,3003.4,3003.3,0.001]
[1763648547172,4.35575247,3003.4,3003.3,0.001]
[1763648547938,1.02619264,3003.4,3003.3,0.001]
[1763648548164,0.605504,3004.0,3003.3,0.001]
[1763648548165,0.2,3004.6,3003.3,0.4885]
[1763648548349,0.002,3004.8,3003.3,0.4885]
[1763648548350,3.4484027,3004.5,3003.3,7.55839014]
[1763648548552,0.12,3004.5,3003.3,7.55839014]
[1763648548763,0.12,3004.5,3003.4,0.499]
[1763648549041,0.12,3004.5,3003.4,1.69400675]
[1763648549257,0.12,3004.5,3003.4,0.499]
[1763648549475,0.90899264,3004.8,3003.5,6.65889794]
[1763648549678,0.002,3004.8,3004.3,7.06989014]
[1763648549883,0.52197757,3006.8,3004.6,1.19500675]
[1763648550105,0.12,3006.2,3005.4,0.1859]
[1763648550586,0.3054,3006.2,3005.4,0.1859]
[1763648550782,3.32675689,3006.0,3005.1,0.6849]
[1763648551097,0.12,3006.2,3005.1,0.6849]
[1763648551279,0.12,3006.2,3005.2,0.499]
[1763648551490,0.12,3006.2,3005.4,7.02735325]
[1763648551785,0.12,3006.2,3005.4,7.52635325]
[1763648552404,0.12,3006.2,3005.4,0.499]
[1763648553603,0.12,3006.2,3005.4,3.82634411]
[1763648554065,0.12,3006.2,3005.4,0.499]
[1763648554477,3.44647246,3006.2,3005.4,0.499]
[1763648554995,6.77301144,3006.2,3005.1,0.1859]
[1763648555191,0.1854,3005.9,3005.1,0.1859]
[1763648555391,6.77301144,3006.2,3005.1,0.6849]
[1763648555892,0.12,3006.2,3005.2,0.499]
[1763648556294,0.12,3006.2,3005.3,7.02735325]
[1763648556471,3.4464652,3006.2,3005.4,0.499]
[1763648556871,6.7729304,3006.2,3005.1,0.1859]
[1763648557072,0.1854,3005.9,3005.1,0.1859]
[1763648557314,0.121,3005.5,3004.4,3.8274516]
[1763648557538,30.0,3007.7,3005.9,0.3064]
[1763648557820,0.1854,3009.0,3007.8,6.0]
[1763648558121,0.4752,3009.7,3008.1,7.02735325]
[1763648560680,0.405504,3009.7,3007.7,0.1859]
[1763648560882,0.405504,3009.5,3007.7,0.1859]
[1763648561080,0.405504,3009.5,3007.7,3.51069825]
[1763648561283,0.405504,3009.3,3007.9,6.0]
[1763648561483,0.4694,3009.4,3008.0,6.64893616]
[1763648561713,1.02599264,3009.3,3008.0,3.32446808]
[1763648561922,1.02599264,3009.3,3008.1,6.0]
[1763648562230,1.02599264,3009.3,3008.0,6.4711]
[1763648562532,4.34902457,3009.3,3006.4,0.88809187]
[1763648562738,0.405504,3006.4,3006.2,1.19173738]
[1763648563031,8.715896,3008.3,3005.6,0.4711]
[1763648563324,0.405504,3007.5,3005.7,0.03327012]
[1763648563637,0.405504,3007.2,3005.8,0.03326901]
[1763648563926,0.405504,3007.2,3005.6,0.4711]
[1763648564075,0.0195,3007.1,3005.6,0.4711]
[1763648564278,0.03327248,3007.0,3004.9,0.1879]
[1763648564501,0.405504,3006.9,3005.1,0.4711]
[1763648564701,0.0195,3006.9,3004.9,0.1879]
[1763648564914,1.01005995,3007.0,3004.9,0.1879]
[1763648564915,0.1,3006.6,3004.9,0.1879]
[1763648565115,0.99628747,3006.8,3004.6,0.4711]
[1763648565116,0.405504,3006.4,3004.6,0.4711]
[1763648565314,1.48229147,3006.4,3004.6,0.4711]
[1763648565532,0.90699264,3006.0,3004.6,0.4711]
[1763648565715,0.90699264,3006.0,3005.0,0.001]
[1763648565920,3.32413655,3008.3,3005.9,7.21525325]
[1763648566209,3.32336324,3009.0,3007.2,7.02735325]
[1763648566542,3.32292151,3009.4,3007.8,7.02735325]
[1763648566747,0.002,3009.5,3007.8,7.02735325]
[1763648566956,0.002,3009.5,3007.9,1.37809264]
[1763648567134,0.002,3009.5,3007.8,7.02735325]
[1763648567135,0.122,3009.5,3008.4,7.02735325]
[1763648567333,0.002,3009.5,3008.5,0.659]
[1763648567645,0.002,3009.5,3008.6,6.64761018]
[1763648567809,0.002,3009.5,3008.6,7.11871018]
[1763648568006,0.002,3009.5,3008.7,0.4711]
[1763648568214,0.0195,3009.4,3007.5,0.1879]
[1763648568531,0.405504,3009.0,3007.5,0.1879]
[1763648568731,0.405504,3008.8,3007.0,0.1879]
[1763648568905,0.405504,3008.6,3007.0,0.1879]
[1763648569239,0.405504,3008.6,3006.8,0.4711]
[1763648569427,0.90699264,3008.3,3006.8,0.4711]
[1763648569626,0.405504,3008.2,3006.8,0.4711]
[1763648570207,0.52152126,3008.2,3006.9,0.03325684]
[1763648570408,0.12,3008.1,3006.8,3.79689486]
[1763648570917,0.12,3008.1,3006.9,0.4711]
[1763648571409,0.12,3008.1,3007.0,0.1879]
[1763648571647,0.12,3008.0,3007.1,0.03325463]
[1763648571804,1.31249664,3008.8,3007.1,0.4711]
[1763648571805,0.5214465,3008.5,3007.1,0.4711]
[1763648572027,0.12,3008.4,3007.1,0.4711]
[1763648572848,0.5214465,3008.5,3007.1,0.4711]
[1763648573164,0.12,3008.4,3007.2,0.03325352]
[1763648573356,0.12,3008.4,3007.3,0.4711]
[1763648573739,0.90699264,3008.6,3007.4,0.03325131]
[1763648574062,0.405504,3009.1,3007.4,0.03325131]
[1763648574063,0.0012,3009.5,3008.7,0.1879]
[1763648574248,0.5213471,3009.4,3008.7,0.1879]
[1763648574629,0.1202,3009.5,3008.7,0.1879]
[1763648574865,0.1202,3009.5,3008.8,0.4711]
[1763648575128,0.0012,3009.5,3008.8,0.4711]
[1763648575372,0.0012,3009.5,3008.8,7.49845325]
[1763648575535,0.0012,3009.5,3008.9,0.4711]
[1763648576351,0.0012,3009.5,3008.9,3.79457369]
[1763648576536,0.0012,3009.5,3008.9,3.79453784]
[1763648576742,0.0012,3009.5,3009.0,0.4711]
[1763648578531,0.0012,3009.5,3008.7,3.51158806]
[1763648578532,0.0012,3009.5,3008.7,0.1879]
[1763648579329,0.0012,3009.5,3008.4,0.4711]
[1763648579330,0.119,3009.4,3008.4,0.659]
[1763648579560,0.119,3009.4,3008.5,0.4711]
[1763648579759,3.32403453,3009.5,3008.5,0.4711]
[1763648579993,0.119,3009.4,3008.5,0.4711]
[1763648580398,0.01861557,3009.4,3008.4,0.1879]
[1763648580707,0.01861557,3009.4,3007.5,0.4711]
[1763648580708,0.05277248,3009.3,3007.5,0.4711]
[1763648580999,0.405504,3009.2,3007.5,0.4711]
[1763648581204,0.425004,3009.2,3007.5,0.4711]
[1763648581417,0.405504,3009.0,3007.0,0.659]
[1763648581707,9.97075245,3008.8,3007.3,3.32524191]
[1763648581995,9.97075245,3008.8,3007.4,0.4711]
[1763648582996,0.90699264,3008.7,3007.4,0.4711]
[1763648583380,9.97075245,3008.8,3007.4,0.4711]
[1763648583381,3.32358415,3008.8,3007.5,0.0332502]
[1763648583583,0.119,3008.7,3007.5,0.0332502]
[1763648583889,6.64761018,3008.6,3007.6,0.4711]
[1763648584190,9.97141527,3008.6,3007.0,3.98454519]
[1763648584359,6.64761018,3008.6,3007.1,0.4711]
[1763648584761,0.119,3008.5,3007.1,0.4711]
[1763648585303,0.425004,3008.4,3007.0,0.1879]
[1763648585461,1.02599264,3008.5,3007.1,0.4711]
[1763648585660,10.37758218,3008.4,3007.0,0.1879]
[1763648585906,13.72110824,3008.4,3007.0,0.1889]
[1763648586195,10.39708218,3008.4,3007.0,0.1889]
[1763648586376,0.92649264,3008.3,3007.0,0.001]
[1763648586917,0.0195,3008.2,3007.0,0.001]
[1763648587127,3.84543298,3008.5,3007.1,0.4711]
[1763648587430,0.119,3008.4,3007.1,0.4711]
[1763648587586,0.119,3008.4,3007.1,0.50435463]
[1763648587790,0.119,3008.3,3007.2,3.32535248]
[1763648588200,0.119,3008.3,3007.2,0.4696]
[1763648589327,0.119,3008.3,3007.0,0.001]
[1763648589820,9.97274115,3008.2,3007.0,0.001]
[1763648590020,6.6484941,3008.2,3007.0,0.001]
[1763648590337,3.32424705,3008.2,3007.0,0.4706]